Cogmind - Beta 10 @@@ ROGUE MODE // 2020.09.20 @ 15:21:58 Player: Cassie Rose Result: Self-destructed Performance ------------- Evolutions (1) 500 Regions Visited (2) 400 Robots Destroyed (30) 150 Value Destroyed (590) 590 Prototype IDs (0) 0 Alien Tech Used (0) 0 Bonus (0) 0 TOTAL SCORE: 1640 Bonus ------- None Cogmind --------- Core Integrity 279/400 Matter 280/300 Energy 99/100 System Corruption 0% Temperature Cool (0) Movement Walking (120) Location -9/Materials Parts ------- > --- POWER (1) -------- (None) > --- PROPULSION (3) --- Aluminum Leg Aluminum Leg > --- UTILITY (3) ------ Medium Storage Unit Medium Storage Unit Improved Terrain Scanner > --- WEAPON (2) ------- Assault Rifle > --- INVENTORY (12) --- Ion Engine Hover Unit Hover Unit Hover Unit Hover Unit Flight Unit Flight Unit Flight Unit Light Armor Plating Grenade Launcher Peak State ------------ > --- POWER ------------ Improved Ion Engine > --- PROPULSION ------- Aluminum Leg Aluminum Leg Aluminum Leg > --- UTILITY ---------- Medium Storage Unit Medium Storage Unit Improved Terrain Scanner > --- WEAPON ----------- EM Pulse Gun EM Pulse Gun > --- INVENTORY -------- Ion Engine Light Ion Engine Hover Unit Hover Unit Hover Unit Hover Unit Flight Unit Flight Unit Flight Unit EM Pulse Gun Assault Rifle Grenade Launcher [Rating: 12] Favorites ----------- Power Light Ion Engine Engine Light Ion Engine Propulsion Aluminum Leg Leg Aluminum Leg Hover Unit Hover Unit Utility Medium Storage Unit Device Improved Terrain Scanner Storage Medium Storage Unit Weapon EM Pulse Gun Energy Gun EM Pulse Gun Ballistic Gun Assault Rifle Ballistic Cannon Light Cannon Launcher Grenade Launcher Build | -11 -10 -9 ------- Run | Scr Mat Mat Slots Evolved 2 | . . 2 Power . | . . . Propulsion 1 | . . 1 Utility 1 | . . 1 Weapon . | . . . Parts Attached 39 | 7 26 6 Power 6 | 2 3 1 Engine 6 | 2 3 1 Core . | . . . Reactor . | . . . Propulsion 13 | 2 10 1 Treads . | . . . Leg 9 | 2 6 1 Wheel . | . . . Hover 4 | . 4 . Flight . | . . . Utility 5 | 1 3 1 Device 1 | . . 1 Storage 4 | 1 3 . Processor . | . . . Hackware . | . . . Protection . | . . . Artifact . | . . . Weapon 15 | 2 10 3 Energy Gun 10 | 2 6 2 Energy Cannon . | . . . Ballistic Gun 3 | . 2 1 Ballistic Cannon 1 | . 1 . Launcher 1 | . 1 . Special Weapon . | . . . Impact Weapon . | . . . Slashing Weapon . | . . . Piercing Weapon . | . . . Special Melee Weapon . | . . . Unidentified Prototypes . | . . . Parts Lost 13 | . 9 4 Power 3 | . 2 1 Propulsion 4 | . 3 1 Utility . | . . . Weapon 6 | . 4 2 Highest Loss Streak 4 | . 4 2 Average Slot Usage (%) 95 | . 95 97 Engine 13 | . 14 11 Leg 18 | . 16 33 Hover 7 | . 8 . Device 1 | . . 9 Storage 26 | . 26 22 Energy Gun 14 | . 13 19 Ballistic Gun 1 | . 1 . Ballistic Cannon 4 | . 5 . Launcher 5 | . 6 . Naked Turns . | . . . Heaviest Build 28 | 13 25 28 Greatest Support 30 | 20 20 30 Greatest Overweight (x) 8 | . 8 . Average Overweight (x) 1 | . 1 . Largest Inventory Capacity 12 | 6 12 12 Average Capacity 10 | 5 10 12 Most Carried 12 | 3 12 12 Average Carried 8 | 1 8 11 Final Capacity 12 | 6 12 12 Final Carried 12 | 1 12 10 Class Distribution -------------------- 85% | Mutant 14% | Scavenger-Mutant Dominant Class ---------------- Mutant | -10/Materials Scavenger-Mutant | -9/Materials Resources | -11 -10 -9 ----------- Run | Scr Mat Mat Matter Collected 792 | 111 596 85 Remotely . | . . . Salvage Created 1066 | . 845 221 Parts 54 | . 43 11 Haulers Intercepted 3 | . 2 1 Recyclers Shooed 6 | . 5 1 Parts Field Recycled . | . . . Retrieved Matter . | . . . Parts Self-Destructed . | . . . Prevented . | . . . Kills | -11 -10 -9 ------- Run | Scr Mat Mat Combat Hostiles Destroyed 18 | . 15 3 Guns 13 | . 10 3 Cannons 1 | . 1 . AOE 3 | . 3 . Classes Destroyed 9 | . 8 1 Builder 1 | . 1 . Hauler 3 | . 2 1 Recycler 4 | . 4 . Mechanic 1 | . 1 . Operator 1 | . 1 . Watcher 2 | . 2 . Swarmer 9 | . 9 . Grunt 7 | . 6 1 Sentry 2 | . . 2 Best Kill Streak 4 | . 4 1 Combat Bots Only 3 | . 3 1 Max Kills in Single Turn 3 | . 3 1 Gunslinging 1 | . 1 . Exploded 3 | . 3 . Melee . | . . . Uniques/NPCs Destroyed . | . . . Combat | -11 -10 -9 -------- Run | Scr Mat Mat Damage Taken 1613 | . 967 646 Core 243 | . 122 121 Absorbed by Shields . | . . . Core Remaining (%) 75 | 100 51 . Volleys Fired 123 | 2 92 29 Largest 2 | 2 2 2 Hottest 100 | 100 100 80 Shots Fired 183 | 4 136 43 Gun 158 | 4 111 43 Cannon 24 | . 24 . Launcher 1 | . 1 . Special . | . . . Kinetic 58 | . 43 15 Thermal 52 | 4 48 . Explosive 1 | . 1 . Electromagnetic 72 | . 44 28 Robot Hit Streak 10 | 1 8 10 Robot Miss Streak 6 | 1 6 6 Penetration Max . | . . . Secondary Targets 4 | . 4 . Max Gunslinging Chain 1 | . 1 . Shots Hit Robots 111 | 2 80 29 Core Hits 50 | . 40 10 Critical Hits . | . . . Critical Kills . | . . . Critical Parts Destroyed . | . . . Melee Attacks . | . . . Impact . | . . . Slashing . | . . . Piercing . | . . . Sneak Attacks . | . . . Combat Hostiles . | . . . Follow-up Attacks . | . . . Damage Inflicted 2022 | . 1664 358 Guns 1258 | . 900 358 Cannons 256 | . 256 . Explosions 504 | . 504 . Melee . | . . . Ramming 4 | . 4 . Kinetic 578 | . 475 103 Thermal 745 | . 745 . Explosive 133 | . 133 . Electromagnetic 562 | . 307 255 Impact . | . . . Slashing . | . . . Piercing . | . . . Highest Corruption 8 | . 8 . Average Corruption 6 | . 6 . Corruption Purged . | . . . Effects 49 | . 49 . Message Errors 14 | . 14 . Matter Fused 11 | . 11 . Heat Flow Errors 7 | . 7 . Energy Discharges 6 | . 6 . Parts Rejected 3 | . 3 . Data Loss (minor) 2 | . 2 . Data Loss (major) 1 | . 1 . Targeting Errors 4 | . 4 . Weapon Failures 1 | . 1 . Overload Shots . | . . . Overflow Damage 153 | . 153 . Projectiles . | . . . Explosions 153 | . 153 . Melee . | . . . Knockbacks 2 | . 2 . Impact . | . . . Kinetic 2 | . 2 . Secondary . | . . . Self-Inflicted Damage 305 | . 305 . Shots 5 | . 5 . Rammed 2 | . 2 . Targets Rammed 4 | . 4 . Kicked 2 | . 2 . Crushed . | . . . Highest Temperature 397 | 39 397 66 Average Temperature 88 | 20 102 22 Received Heat Transfer 453 | . 219 234 Effects 4 | . 4 . Shutdowns 1 | . 1 . Interference 3 | . 3 . Siege Activations . | . . . Robots Corrupted . | . . . Combat Hostiles . | . . . Parts Fried 1 | . . 1 Impact Corruptions . | . . . Robots Melted 1 | . 1 . Combat Hostiles 1 | . 1 . Parts Melted 1 | . 1 . Heat Transferred 1460 | . 1460 . Parts Sabotaged . | . . . Parts Stolen . | . . . Parts Stripped . | . . . Power Chain Reactions 3 | . 3 . Missiles Intercepted . | . . . Alert | -11 -10 -9 ------- Run | Scr Mat Mat Peak Influence 188 | . 172 188 Initial 56 | . . 56 Average 63 | . 58 108 Maximum Alert Level . | . . . Low Security (%) 100 | 100 100 100 Level 1 . | . . . Level 2 . | . . . Level 3 . | . . . Level 4 . | . . . Level 5 . | . . . High Security . | . . . Max Security . | . . . Squads Dispatched 2 | . 1 1 Investigation 1 | . 1 . Extermination . | . . . Reinforcement 1 | . . 1 Assault . | . . . Garrison . | . . . Intercept . | . . . Construction Impeded . | . . . Haulers Reinforced . | . . . Stealth | -11 -10 -9 --------- Run | Scr Mat Mat Distress Signals . | . . . Communications Jammed . | . . . Distress Signals . | . . . Times Spotted 47 | . 36 11 Peak Tracking Total 6 | . 5 6 Tactical Retreats . | . . . Traps | -11 -10 -9 ------- Run | Scr Mat Mat Traps Triggered 7 | . 7 . Indirectly . | . . . Trap Hack Attempts . | . . . Triggered . | . . . Disarmed . | . . . Reprogrammed . | . . . Reused . | . . . Traps Extracted . | . . . Installed . | . . . Triggered . | . . . Machines | -11 -10 -9 ---------- Run | Scr Mat Mat Machines Disabled 5 | . 5 . Max in Single Turn 3 | . 3 . Machines Sabotaged . | . . . Garrisons Compromised . | . . . Overloaded Fab Kills . | . . . Fab Network Shutdowns . | . . . Hacking | -11 -10 -9 --------- Run | Scr Mat Mat Machines Accessed 6 | . 6 . Terminals 5 | . 5 . Fabricators . | . . . Repair Stations 1 | . 1 . Recycling Units . | . . . Scanalyzers . | . . . Garrison Access . | . . . Total Hacks 11 | . 11 . Successful 6 | . 6 . Failed 5 | . 5 . Catastrophic 1 | . 1 . Database Lockouts . | . . . Manual 9 | . 9 . Terminals 9 | . 9 . Fabricators . | . . . Repair Stations 2 | . 2 . Recycling Units . | . . . Scanalyzers . | . . . Garrison Access . | . . . Terminal Hacks . | . . . Fabricator Hacks . | . . . Repair Station Hacks 1 | . 1 . Refit 1 | . 1 . Recycling Unit Hacks . | . . . Scanalyzer . | . . . Garrison Access Hacks . | . . . Unauthorized Hacks 5 | . 5 . Terminals 5 | . 5 . Operators 5 | . 5 . Fabricators . | . . . Repair Stations . | . . . Recycling Units . | . . . Scanalyzers . | . . . Garrison Access . | . . . Data Cores Recovered 1 | . 1 . Used . | . . . Hacking Detections 4 | . 4 . Full Trace Events 2 | . 2 . Feedback Events . | . . . Feedback Blocked . | . . . Robot Schematics Acquired . | . . . Robots Built . | . . . Matter . | . . . Time . | . . . Total Robot Build Rating . | . . . Part Schematics Acquired . | . . . Parts Built . | . . . Matter . | . . . Time . | . . . Total Part Build Rating . | . . . Parts Repaired . | . . . Time . | . . . Parts Recycled . | . . . Recycled Matter . | . . . Retrieved Matter . | . . . Retrieved Components . | . . . Parts Scanalyzed . | . . . Part Schematics Acquired . | . . . Parts Damaged . | . . . Bothacking | -11 -10 -9 ------------ Run | Scr Mat Mat Used RIF Installer . | . . . Robots Hacked . | . . . Non-combat . | . . . Combat . | . . . Robot Hacks Applied . | . . . Relay Couplers Released . | . . . Robots Rewired . | . . . Allies Hacked . | . . . Hacks Repelled . | . . . Allies | -11 -10 -9 -------- Run | Scr Mat Mat Total Allies . | . . . Largest Group . | . . . Highest-Rated Group . | . . . Highest-Rated Ally . | . . . Total Orders . | . . . Ally Attacks . | . . . Total Damage . | . . . Kills . | . . . Allies Corrupted . | . . . Allies Melted . | . . . Intel | -11 -10 -9 ------- Run | Scr Mat Mat Robot Analysis Total . | . . . Derelict Logs Recovered . | . . . Drone Launches . | . . . Drone Recoveries . | . . . Exploration | -11 -10 -9 ------------- Run | Scr Mat Mat Turns Passed 2545 | 67 2110 368 Spaces Moved 1370 | 42 1101 227 Core 20 | 5 15 . Treads . | . . . Legs 940 | 37 676 227 Wheels . | . . . Hover 410 | . 410 . Flight . | . . . Fastest Speed 50 | 50 116 120 Average Speed 152 | 111 160 120 Slowest Speed 450 | 120 450 120 Overloaded Moves . | . . . Propulsion Burnouts . | . . . Robots Hopped . | . . . Cave-ins Triggered . | . . . Exploration Rate (%) 40 | 3 99 19 Regions Visited 2 Branch Regions . Pre-discovered Areas . | . . . Known Exits Taken . | . . . Unknown Exits Taken 2 | 1 1 . Scrap Searched . | . . . Spaces Dug . | . . . Terrain Destroyed 54 | . 54 . Melee . | . . . Projectile . | . . . AOE 54 | . 54 . Terrain Rammed . | . . . Walls Destroyed . | . . . Machines Disabled . | . . . Actions | -11 -10 -9 --------- Run | Scr Mat Mat Total 1639 | 57 1302 280 Wait 56 | . 46 10 Move 1368 | 41 1100 227 Hop . | . . . Pick Up 37 | 7 26 4 Fast Attach 3 | . 3 . Attach 18 | 6 9 3 Detach . | . . . Swap 18 | 1 14 3 Drop 12 | . 8 4 Fire 123 | 2 92 29 Melee . | . . . Ram . | . . . Kick 4 | . 4 . Crush . | . . . Escape Stasis . | . . . Rewire . | . . . Trap . | . . . Miscellaneous . | . . . Route ------- -11/Scrapyard -10/Materials (discovered 4 exits: *Mat x3 / [*Min]) -9/Materials (discovered 1 exit: [*Min]) History --------- Turn | Location | Event 2 | -11/Scrapyard | Discovered new exit (range 16) 68 | -11/Scrapyard | Entered Materials 317 | -10/Materials | Build established: Mutant 405 | -10/Materials | Discovered new exit (range 10) 653 | -10/Materials | Discovered new exit (range 7) 765 | -10/Materials | Discovered new exit (range 14) 1186 | -10/Materials | Discovered new exit (range 7) 1841 | -10/Materials | Lost 4 parts (1p2n1w) 2178 | -10/Materials | Entered another Materials area 2178 | -9/Materials | Evolved 2 slots: Propulsion x1, Utility x1 2473 | -9/Materials | Build established: Scavenger-Mutant 2505 | -9/Materials | Discovered new exit (range 9) 2546 | -9/Materials | Self-destructed Last Messages --------------- 02519_ U-05 Engineer builds a Wall. 02520_ U-05 Engineer lays Concrete. 02521_ U-05 Engineer builds a Wall. 02521_ K-01 Serf collects debris. 02523_ U-05 Engineer builds a Door. 02526_ U-05 Engineer lays Concrete. 02528_ ALERT: Hostiles spotted, dispatching reinforcements to Terminal M010. 02529_ K-01 Serf collects debris. 02529_ U-05 Engineer builds a Wall. 02531_ U-05 Engineer lays Concrete. 02531_ Destroyed Sml. Laser. 02532_ U-05 Engineer builds a Wall. 02532_ K-01 Serf collects debris. 02533_ U-05 Engineer lays Concrete. 02534_ Acquired 12 matter. 02535_ U-05 Engineer lays Concrete. 02535_ Acquired 13 matter. 02541_ Aluminum Leg destroyed. 02541_ Imp. Ion Engine destroyed. Map ----- +----------------------------------------------------+ | ?????????????????????????????????????????????????? | | ?????????????????????????????????????????????????? | | ?????????????????????????????????????????????????? | | ?????????????????????????????????????????????????? | | ?????????????????????????????????????????????????? | | ?????????????????????????????????????????????????? | | ?????????????????????????????????????????????????? | | ?????????????????????????????????????????????????? | | ?????????????????????????????????????????????????? | | ?????????????????????????????????????????????????? | | ?#??????????????????????? ?????????????????????? | | ????????????????????????? ?????????????????????? | | ????????????????????????" ?????????????????????? | | ??????????????????????"?" ?????????????????????? | | ????????? ????????? ???? #?????????????????????? | | ???????????????? ??? ? #?????#???????????????? | | ????????????? ?? +?? ?"" ##????????????????????? | | #????????????????? ? ?"" #?????????????????????? | | ???????????????????# """ #??????#??????????????? | | ??????????????????##w #?????????????????????? | | ??#????? ??????????# a#?#######????"????????? | | ????#############?## """ #?""|"|""#????????????? | | ????# #??# """g #? "|"|" #????????????? | | ????# """"""" #??# """ ## ##/##????????? | | ????# """"""" #??# mg a ???????? | | ????# """"""" #??# =@* < ???????? | | ????# """"""" #??# # =% Y ???????? | | ????# """"""" #??# ####+## ###??????????? | | ????# #??# * | #######?#??????????? | | ##########+######### # #??#???#???????????? | | + ##??????#?#?????????? | | # ######## #??????????????????? | | # ###???### %!= ##?????????????????? | | + ########???????# [!* ##??????????????????? | | # ##########?????### % ###????#?????????????? | | # # =##?????########????????????????????? | | ## # """ ###???????????#??"????????????????? | | # """"" ###????????????????????????????????? | | + """"" ##?????????????????????????????????? | | # """"" #??##?#????????#???? ??????????????? | | ### ##! """ #???#?????#?????? ?????????????????? | | ??# ## ##?#????? ? ???????????????????????? | | ??# ## #????????? ???????????????????????? | | #?# ## !%= ##?????????????????????????????????? | | ??# #####+########???????????????????????????????? | | ??# * = + ""???????????????????????????? | | ?#################????????"??????????????????????? | | ?#?????????#?????#???????????????????????????????? | | ????????????#?#??????????????????????????????????? | | ??#???#???##?????????????????????????????????????? | +----------------------------------------------------+ Best States ------------- Heat Dissipation 28 Energy Generation 12 Energy Capacity 265 Matter Stores 300 Matter Capacity 300 Sight Range 16 Terrain Scan Range 16 Terrain Scan Density 10 Evasion (%) 40 Item Schematics ----------------- None Robot Schematics ------------------ None Fabricated ------------ Nothing Alien Tech Used ----------------- None Achievements -------------- None Challenges ------------ None Game ------ Seed SiegeHelicalInterpreter Manual? 0 Play Time 00:24:39 Cumulative 87.2 hours Start 2020.09.20 @ 14:18:27 End 2020.09.20 @ 15:21:58 Sessions 1 Manual Loads 0 Difficulty Rogue Special Mode None Game No. 146 Rogue 146 Adventurer 0 Explorer 0 Win Type - Total 0 Types 0/0/0/0/0/0/0/0/0 Lore% 21 Gallery% 27 Achievement% 28 Wizard Run 0 Options --------- ASCII 0 Keyboard 0 Movement Mouse Keybinds 0 Fullscreen 2 Font 18/CogNarrow Map View 76x50 Tactical HUD 1 Map Filters NONE Filters LOW_CONTRAST(13,24,33)|BRIGHTNESS(120)|SATURATION(80) Steam 1 RUN: ea8060bc-e740-483b-b538-4386f9a16e1f